Cogmind - Beta 15 @@@ ROGUE MODE // 2025.10.21 @ 21:49:15 Player: the Result: Destroyed by S-43 Plague with Heavy Machine Gun Performance ------------- Evolutions (8) 4000 Regions Visited (14) 2800 Robots Destroyed (72) 360 Value Destroyed (1869) 1869 Prototype IDs (40) 800 Alien Tech Used (2) 400 Bonus (2840) 2840 TOTAL SCORE: 13069 Bonus ------- Follower Combat Kills 40 Entered DSFs 500 Delivered SUBCON Basin 2000 Met Zhirov 300 Cogmind --------- Core Integrity 0/1450 Matter 2/300 Energy 98/100 System Corruption 0% Temperature Cool (6) Movement Flying (37) Location -2/Research Parts ------- > --- POWER (4) -------- (None) > --- PROPULSION (9) --- Cooled Field Propulsion Drive > --- UTILITY (8) ------ (None) > --- WEAPON (2) ------- (None) > --- INVENTORY (5) ---- Dimensional Node Initializer Variable Charge Gun Peak State ------------ > --- POWER ------------ Makeshift Power Source > --- PROPULSION ------- Advanced Myomer Leg Advanced Myomer Leg Advanced Myomer Leg Gravmag Array Improved Gyrokinetic Inverter > --- UTILITY ---------- Deep Structural Scanner Advanced Sensor Array Advanced Signal Interpreter Hardened Light Armor Plating Layered Light Armor Plating Improved Hacking Suite Improved System Shield Tech Extrapolator > --- WEAPON ----------- Advanced Datajack Power Sword > --- INVENTORY -------- Cooled Fission Core Dimensional Node Initializer Transdimensional Reconstructor Variable Charge Gun Mini Smartbomb Launcher [Rating: 97] Favorites ----------- Power Light Ion Engine Engine Light Ion Engine Power Core Light Fission Core Propulsion Light Treads Treads Light Treads Leg Cargo Legs Wheel Armored Huge Wheel Hover Unit Gravmag Array Flight Unit Diametric Drive Utility Scrap Shield Device Improved Sensor Array Storage Large Storage Unit Processor Tech Extrapolator Hackware Improved System Shield Protection Scrap Shield Weapon Particle Cannon Energy Gun Lightning Gun Energy Cannon Particle Cannon Ballistic Gun Subdweller Machine Gun Ballistic Cannon Battle Cannon Launcher Mini Smartbomb Launcher Special Weapon Mining Laser Impact Weapon Flail Slashing Weapon Power Sword Piercing Weapon Makeshift Spear Special Melee Weapon Advanced Datajack Build | -11 -10 -10 -7 -5 -5 -5 -5 -4 -4 -4 -4 -3 -3 -2 ------- Run | Yrd Mat Sub Rec Fac Upp Upp Zhi Pro Fac Arm Lab Res DSF Res Slots Evolved 16 | . . . . 10 . . . . 2 . . 2 . 2 Power 3 | . . . . 1 . . . . . . . 1 . 1 Propulsion 7 | . . . . 3 . . . . 2 . . 1 . 1 Utility 6 | . . . . 6 . . . . . . . . . . Weapon . | . . . . . . . . . . . . . . . Parts Attached 100 | 7 7 19 8 22 4 1 8 . 7 13 . . 1 3 Power 9 | 1 1 3 1 2 1 . . . . . . . . . Engine 7 | 1 1 3 1 . 1 . . . . . . . . . Core 2 | . . . . 2 . . . . . . . . . . Reactor . | . . . . . . . . . . . . . . . Propulsion 28 | 2 . 3 . 3 1 . 4 . 1 11 . . . 3 Treads 4 | 2 . 2 . . . . . . . . . . . . Leg 6 | . . 1 . 1 . . 4 . . . . . . . Wheel 7 | . . . . . 1 . . . . 6 . . . . Hover 5 | . . . . 1 . . . . 1 3 . . . . Flight 6 | . . . . 1 . . . . . 2 . . . 3 Utility 36 | 2 2 5 . 13 2 . 4 . 6 1 . . 1 . Device 14 | 1 . . . 5 1 . 1 . 4 1 . . 1 . Storage 4 | 1 1 . . . . . 2 . . . . . . . Processor 5 | . . . . 4 . . . . 1 . . . . . Hackware 4 | . . . . 3 . . . . 1 . . . . . Protection 9 | . 1 5 . 1 1 . 1 . . . . . . . Artifact . | . . . . . . . . . . . . . . . Weapon 27 | 2 4 8 7 4 . 1 . . . 1 . . . . Energy Gun 8 | 2 2 . 3 1 . . . . . . . . . . Energy Cannon 5 | . . 3 1 . . 1 . . . . . . . . Ballistic Gun 4 | . . 1 3 . . . . . . . . . . . Ballistic Cannon 1 | . . 1 . . . . . . . . . . . . Launcher 3 | . 1 . . 1 . . . . . 1 . . . . Special Weapon 1 | . 1 . . . . . . . . . . . . . Impact Weapon 2 | . . 2 . . . . . . . . . . . . Slashing Weapon 1 | . . . . 1 . . . . . . . . . . Piercing Weapon 1 | . . 1 . . . . . . . . . . . . Special Melee Weapon 1 | . . . . 1 . . . . . . . . . . Unidentified Prototypes 14 | . . . . 4 . . 5 . . 4 . . . 1 Parts Lost 20 | . . 2 2 . 2 . . . 6 2 . . . 6 Power 4 | . . 1 1 . . . . . 2 . . . . . Propulsion 6 | . . . . . . . . . 1 1 . . . 4 Utility 8 | . . 1 1 . 2 . . . 3 . . . . 1 Weapon 2 | . . . . . . . . . . 1 . . . 1 Highest Loss Streak 6 | . . 2 2 . 2 . . . 3 3 . . . 6 To Critical Strikes . | . . . . . . . . . . . . . . . Average Backups 4 | 1 8 3 2 4 5 5 5 5 4 4 3 3 3 3 Power . | . 1 . . . 1 1 1 1 . . . . . . Propulsion . | . 1 . . . . . . . . . . . . . Utility 1 | . 1 1 1 1 1 1 1 . . . . . . . Weapon 2 | . 4 1 . 2 2 3 2 2 2 2 2 2 2 1 Tool/Special . | . . . . . . . . . . . . . . . Unused Backups 30 | . 1 16 2 10 . . . . . . . . . 1 Power . | . . . . . . . . . . . . . . . Propulsion 4 | . . 1 . 3 . . . . . . . . . . Utility 10 | . . 3 2 5 . . . . . . . . . . Weapon 14 | . 1 11 . 2 . . . . . . . . . . Tool/Special 2 | . . 1 . . . . . . . . . . . 1 Average Slot Usage (%) 69 | . 100 72 57 47 64 70 77 82 60 20 31 18 11 6 Engine 5 | . 14 5 7 . . 5 5 5 4 . . . . . Treads 14 | . 28 23 . . . . . . . . . . . . Leg 3 | . . 1 11 . . . 10 17 10 . . . . . Hover 1 | . . . . 2 5 5 4 5 6 3 . . . . Device 4 | . 14 . . 9 14 11 11 11 9 . . . 2 1 Storage 4 | . 14 2 11 . . . . . . . . . . . Processor 2 | . . . . 15 14 11 11 11 7 . . . . . Hackware 1 | . . . . 4 5 5 5 5 5 . . . . . Protection 7 | . . 11 6 . 5 11 11 11 5 1 . . . . Energy Gun 5 | . 26 1 14 . . . . . . 1 . . . . Energy Cannon 7 | . . 14 . . . . . . . . . . . . Ballistic Gun 2 | . . 3 3 . . . . . . . . . . . Ballistic Cannon 3 | . . 5 1 . . . . . . . . . . . Peak Build Rating 97 | 7 12 44 46 67 65 66 90 81 97 66 46 46 27 27 Average Rating 28 | 5 8 17 34 43 58 65 75 80 67 29 46 23 23 15 On Entrance 40 | . 7 12 44 31 63 64 66 81 81 22 46 46 18 27 Naked Turns 104 | . . . . . . . . . 42 33 . . . 29 Heaviest Build 43 | 11 38 43 42 43 23 20 23 21 19 10 . . 3 3 Greatest Support 90 | 40 40 55 55 55 28 20 90 20 32 80 14 14 14 16 Greatest Overweight (x) 6 | . . . . 4 1 . 6 1 1 3 . . . . Average Overweight (x) . | . . . . . . . . . . . . . . . Largest Inventory Capacity 15 | 8 15 15 15 15 5 5 5 5 5 5 5 5 5 5 Average Capacity 8 | 6 10 7 15 5 5 5 5 5 5 5 5 5 5 5 Most Carried 15 | 4 15 15 15 8 5 5 5 5 5 5 3 5 5 5 Average Carried 6 | 1 9 7 8 4 5 5 5 4 4 4 3 3 3 3 Final Capacity 15 | 8 15 15 15 5 5 5 5 5 5 5 5 5 5 5 Final Carried 15 | 4 15 15 8 5 5 5 5 5 5 3 3 3 5 2 Class Distribution -------------------- 67% | Mutant 13% | Scout 9% | Subdweller-Mutant 3% | Commander-Mutant Dominant Class ---------------- Mutant | -10/Materials Mutant | -10/Subcaves Mutant | -7/Recycling Mutant | -5/Factory Scout | -5/Upper Caves Scout | -5/Upper Caves Scout | -5/Zhirov Scout | -4/Proximity Caves Hacker-Ninja | -4/Factory Mutant | -4/Armory Mutant | -4/Lab Mutant | -3/Research Mutant | -3/DSF Sprinter | -2/Research Resources | -11 -10 -10 -7 -5 -5 -5 -5 -4 -4 -4 -4 -3 -3 -2 ----------- Run | Yrd Mat Sub Rec Fac Upp Upp Zhi Pro Fac Arm Lab Res DSF Res Matter Collected 2000 | 256 170 251 254 150 545 117 174 67 16 . . . . . Remotely . | . . . . . . . . . . . . . . . Salvage Created 2838 | 212 566 714 535 82 332 92 269 . . . . . . 36 Parts 147 | 12 36 46 23 5 9 6 6 . . . . . . 4 Haulers Intercepted 3 | . 2 . . 1 . . . . . . . . . . Recyclers Shooed . | . . . . . . . . . . . . . . . Parts Field Recycled . | . . . . . . . . . . . . . . . Retrieved Matter . | . . . . . . . . . . . . . . . Parts Self-Destructed 39 | . . 24 . . 5 6 4 . . . . . . . Prevented 3 | . . . . . 3 . . . . . . . . . Kills | -11 -10 -10 -7 -5 -5 -5 -5 -4 -4 -4 -4 -3 -3 -2 ------- Run | Yrd Mat Sub Rec Fac Upp Upp Zhi Pro Fac Arm Lab Res DSF Res Combat Hostiles Destroyed 49 | . 12 18 5 . 9 3 . . . . . . . 2 Melee 2 | . . 1 . . . 1 . . . . . . . . Guns 12 | . 4 4 3 . 1 . . . . . . . . . Cannons 12 | . . 12 . . . . . . . . . . . . AOE 20 | . 8 . . . 8 2 . . . . . . . 2 Classes Destroyed 14 | 2 7 3 1 . . 1 . . . . . . . . Worker 2 | . 1 . . . . . . . . . . . . 1 Builder 2 | . 2 . . . . . . . . . . . . . Tunneler 5 | 5 . . . . . . . . . . . . . . Hauler 3 | . 2 . . 1 . . . . . . . . . . Recycler 6 | 1 2 . 3 . . . . . . . . . . . Operator 1 | . 1 . . . . . . . . . . . . . Turret 2 | . . 2 . . . . . . . . . . . . Watcher 2 | . 2 . . . . . . . . . . . . . Swarmer 23 | . 6 8 . . 5 2 . . . . . . . 2 Grunt 11 | . 6 1 . . 4 . . . . . . . . . Sentry 5 | . . 1 4 . . . . . . . . . . . Hunter 1 | . . . 1 . . . . . . . . . . . Programmer 1 | . . . . . . 1 . . . . . . . . Subdweller 8 | . . 8 . . . . . . . . . . . . Best Kill Streak 5 | 5 5 3 2 1 5 2 . . . . . . . 3 Combat Bots Only 5 | . 5 3 2 . 5 2 . . . . . . . 2 Max Kills in Single Turn 3 | 1 3 1 1 1 3 1 . . . . . . . 2 Gunslinging . | . . . . . . . . . . . . . . . Exploded 3 | . 3 . . . 3 1 . . . . . . . 1 Melee 1 | . . 1 . . . 1 . . . . . . . . Uniques/NPCs Destroyed . | . . . . . . . . . . . . . . . Combat | -11 -10 -10 -7 -5 -5 -5 -5 -4 -4 -4 -4 -3 -3 -2 -------- Run | Yrd Mat Sub Rec Fac Upp Upp Zhi Pro Fac Arm Lab Res DSF Res Hostile Shots Fired 753 | . 25 106 114 2 18 10 . 10 273 34 . . 6 155 Missed 334 | . 5 39 34 1 8 . . 7 153 10 . . 3 74 Hits 419 | . 20 67 80 1 10 10 . 3 120 24 . . 3 81 Melee 1 | . . . . . . . . . . . . . 1 . Projectile 418 | . 20 67 80 1 10 10 . 3 120 24 . . 2 81 AOE 2 | . . . . . . . . . . 2 . . . . Critical Strikes 9 | . 1 2 . . . 1 . . . 2 . . . 3 Damage Taken 6601 | . 204 1003 653 23 308 203 . 69 1518 692 . . 76 1852 Core 2806 | . 45 119 64 . 46 40 . 44 798 146 . . 53 1451 Absorbed by Shields . | . . . . . . . . . . . . . . . Core Remaining (%) 61 | 100 . . 8 . . . . 87 . . 16 . 95 . Volleys Fired 257 | 17 51 85 26 7 23 17 . 23 3 . . . . 5 Largest 2 | 2 2 2 2 1 1 1 . 1 1 . . . . 1 Hottest 225 | 80 100 148 110 225 225 98 . 75 225 . . . . 225 Shots Fired 351 | 34 72 122 45 7 23 17 . 23 3 . . . . 5 Gun 188 | 34 42 19 43 7 14 . . 23 3 . . . . 3 Cannon 120 | . . 103 2 . . 15 . . . . . . . . Launcher 20 | . 7 . . . 9 2 . . . . . . . 2 Special 23 | . 23 . . . . . . . . . . . . . Kinetic 40 | . . 18 22 . . . . . . . . . . . Thermal 236 | 34 45 88 4 7 14 15 . 23 3 . . . . 3 Explosive 20 | . 7 . . . 9 2 . . . . . . . 2 Electromagnetic 55 | . 20 16 19 . . . . . . . . . . . Robot Hit Streak 19 | 7 8 12 19 . 2 . . . . . . . . 3 Robot Miss Streak 5 | 4 5 4 4 . 1 . . . . . . . . . Penetration Max . | . . . . . . . . . . . . . . . Secondary Targets . | . . . . . . . . . . . . . . . Shots Hit Robots 195 | 19 31 86 36 4 7 3 7 . . . . . . 2 Core Hits 116 | 7 25 31 17 1 19 5 3 . . . . . . 8 Critical Kills 1 | . . 1 . . . . . . . . . . . . Critical Parts Destroyed 2 | . . 2 . . . . . . . . . . . . Critical Strikes 4 | . . 3 . . . 1 . . . . . . . . Smash 3 | . . 3 . . . . . . . . . . . . Sever 1 | . . . . . . 1 . . . . . . . . Melee Attacks 60 | . . 17 . 13 10 3 7 3 4 3 . . . . Impact 17 | . . 17 . . . . . . . . . . . . Slashing 34 | . . . . 4 10 3 7 3 4 3 . . . . Piercing 7 | . . . . 7 . . . . . . . . . . Sneak Attacks 3 | . . . . 3 . . . . . . . . . . Combat Hostiles . | . . . . . . . . . . . . . . . Follow-up Attacks 3 | . . 3 . . . . . . . . . . . . Damage Inflicted 7048 | 219 907 2114 676 120 1490 317 590 . . . . . . 615 Guns 1448 | 212 375 133 676 . 52 . . . . . . . . . Cannons 1676 | . . 1676 . . . . . . . . . . . . Explosions 2272 | . 357 . . . 1106 196 . . . . . . . 613 Melee 1468 | . . 305 . 120 332 121 590 . . . . . . . Ramming 16 | 7 7 . . . . . . . . . . . . 2 Kinetic 684 | . . 283 401 . . . . . . . . . . . Thermal 2055 | 212 348 1421 22 . 52 . . . . . . . . . Explosive 2272 | . 357 . . . 1106 196 . . . . . . . 613 Electromagnetic 553 | . 195 105 253 . . . . . . . . . . . Impact 305 | . . 305 . . . . . . . . . . . . Slashing 1093 | . . . . 50 332 121 590 . . . . . . . Piercing 70 | . . . . 70 . . . . . . . . . . Highest Corruption 6 | . . . . . 5 6 6 6 3 3 3 . . . Average Corruption 5 | . . . . . 5 5 6 6 2 3 3 . . . Corruption Purged . | . . . . . . . . . . . . . . . Corruption Blocked . | . . . . . . . . . . . . . . . Effects 35 | . . . . . 4 9 5 10 3 4 . . . . Message Errors 11 | . . . . . 3 4 1 1 1 1 . . . . Matter Fused 6 | . . . . . . 2 1 2 . 1 . . . . Heat Flow Errors 6 | . . . . . 1 . 1 2 1 1 . . . . Energy Discharges 5 | . . . . . . 2 1 2 . . . . . . Data Loss (minor) 5 | . . . . . . 1 1 2 1 . . . . . Data Loss (major) 1 | . . . . . . . . 1 . . . . . . Alerts 1 | . . . . . . . . . . 1 . . . . Overload Shots 8 | . . . . 1 3 . . . 3 . . . . 1 Effects 1 | . . . . . . . . . 1 . . . . . Short Circuit 1 | . . . . . . . . . 1 . . . . . Overflow Damage 508 | . 5 126 . 15 206 . 97 . . . . . . 59 Projectiles 21 | . . 21 . . . . . . . . . . . . Explosions 69 | . 5 . . . 5 . . . . . . . . 59 Melee 418 | . . 105 . 15 201 . 97 . . . . . . . Knockbacks 4 | . . 4 . . . . . . . . . . . . Impact 1 | . . 1 . . . . . . . . . . . . Kinetic 3 | . . 3 . . . . . . . . . . . . Secondary . | . . . . . . . . . . . . . . . Self-Inflicted Damage 1 | . . . . . . . . . . . . . . 1 Shots . | . . . . . . . . . . . . . . . Rammed 8 | 4 3 . . . . . . . . . . . . 1 Targets Rammed 10 | 4 5 . . . . . . . . . . . . 1 Kicked . | . . . . . . . . . . . . . . . Crushed 2 | . 2 . . . . . . . . . . . . . Highest Temperature 408 | 90 180 238 235 168 230 310 82 251 408 54 . . . 92 Average Temperature 78 | 22 61 71 81 67 70 138 44 115 187 54 . . . 58 Received Heat Transfer 975 | . 87 147 174 . . . . . 135 99 . . 9 324 Effects 5 | . . . . . . 4 . . 1 . . . . . Shutdowns 1 | . . . . . . . . . 1 . . . . . Energy Bleed 1 | . . . . . . 1 . . . . . . . . Interference 3 | . . . . . . 3 . . . . . . . . Siege Activations . | . . . . . . . . . . . . . . . Martial Activations . | . . . . . . . . . . . . . . . Shielding Activations . | . . . . . . . . . . . . . . . Robots Disrupted . | . . . . . . . . . . . . . . . Combat Hostiles . | . . . . . . . . . . . . . . . Robots Corrupted 3 | . . 1 2 . . . . . . . . . . . Combat Hostiles 3 | . . 1 2 . . . . . . . . . . . Parts Fried 4 | . 1 1 2 . . . . . . . . . . . Impact Corruptions 3 | . . 3 . . . . . . . . . . . . Robots Melted . | . . . . . . . . . . . . . . . Combat Hostiles . | . . . . . . . . . . . . . . . Parts Melted 5 | 1 1 3 . . . . . . . . . . . . Heat Transferred 3680 | 475 750 2331 50 . 74 . . . . . . . . . Parts Sabotaged . | . . . . . . . . . . . . . . . Parts Stolen . | . . . . . . . . . . . . . . . Parts Stripped . | . . . . . . . . . . . . . . . Power Chain Reactions . | . . . . . . . . . . . . . . . Alert | -11 -10 -10 -7 -5 -5 -5 -5 -4 -4 -4 -4 -3 -3 -2 ------- Run | Yrd Mat Sub Rec Fac Upp Upp Zhi Pro Fac Arm Lab Res DSF Res Maximum Alert Level 1 | . 1 . . . . . . . . . . . . . Low Security (%) 98 | 100 94 . 100 100 . . . . 100 100 . 100 100 100 Level 1 1 | . 5 . . . . . . . . . . . . . Level 2 . | . . . . . . . . . . . . . . . Level 3 . | . . . . . . . . . . . . . . . Level 4 . | . . . . . . . . . . . . . . . Level 5 . | . . . . . . . . . . . . . . . High Security . | . . . . . . . . . . . . . . . Max Security . | . . . . . . . . . . . . . . . Peak Influence 216 | 10 216 . 153 64 . . . . 132 59 . . 18 167 Initial 153 | . . . 153 64 . . . . . 50 . . 3 9 Average 29 | 1 55 . 22 18 . . . . 22 37 . . 4 32 Influence Increases 2451 | 30 421 485 220 253 360 100 15 . 259 48 . 5 15 240 Destroy 0b10 Robot/C 880 | . 240 240 120 . 180 60 . . . . . . . 40 Destroy 0b10 Robot/NC 135 | 30 50 . 20 5 10 . 15 . . . . . . 5 Destroy Leader 110 | . 58 20 . 2 20 10 . . . . . . . . Allied During Kill 1 | . . . 1 . . . . . . . . . . . Successful Hack 142 | . 4 . 64 14 . . . . 41 14 . 5 . . Disable Machine 105 | . 15 . . 30 . . . . 45 15 . . . . Destroy Structure 113 | . 39 . 15 32 . . . . 8 4 . . . 15 Advance Influence 50 | . . . . 50 . . . . . . . . . . Partial Spotted 45 | . . . . . . . . . . . . . . 45 Lose Combat Pursuer 870 | . 15 225 . 120 150 30 . . 165 15 . . 15 135 Influence Decreases 2284 | 30 246 341 503 289 246 153 76 . 155 144 8 . 2 91 Entered New Map 430 | . . 85 166 22 . 23 61 . . 54 8 . 2 9 Time Decay 1683 | 30 246 256 315 237 226 130 15 . 125 70 . . . 33 Lost Part 129 | . . . 10 . 20 . . . 30 20 . . . 49 Lost Ally 42 | . . . 12 30 . . . . . . . . . . Squads Dispatched 9 | . 2 . . 4 . . . . 2 . . . 1 . Investigation 2 | . . . . 2 . . . . . . . . . . Extermination 3 | . . . . 2 . . . . 1 . . . . . Reinforcement 4 | . 2 . . . . . . . 1 . . . 1 . Assault . | . . . . . . . . . . . . . . . Garrison . | . . . . . . . . . . . . . . . Intercept . | . . . . . . . . . . . . . . . Searches Triggered . | . . . . . . . . . . . . . . . Construction Impeded . | . . . . . . . . . . . . . . . Haulers Reinforced . | . . . . . . . . . . . . . . . Active Scanning Responses . | . . . . . . . . . . . . . . . Cargo Convoy Interrupts . | . . . . . . . . . . . . . . . Stealth | -11 -10 -10 -7 -5 -5 -5 -5 -4 -4 -4 -4 -3 -3 -2 --------- Run | Yrd Mat Sub Rec Fac Upp Upp Zhi Pro Fac Arm Lab Res DSF Res Distress Signals 7 | . 3 . . . . . . . 2 . . . . 2 Communications Jammed . | . . . . . . . . . . . . . . . Distress Signals . | . . . . . . . . . . . . . . . Times Spotted 135 | . 21 23 6 10 14 2 . 2 19 12 . . 6 20 Peak Tracking Total 18 | . 6 3 2 5 6 2 . 2 10 7 . . 5 18 Tactical Retreats 23 | . 1 3 . 5 4 2 . . 5 1 . . 1 1 Traps | -11 -10 -10 -7 -5 -5 -5 -5 -4 -4 -4 -4 -3 -3 -2 ------- Run | Yrd Mat Sub Rec Fac Upp Upp Zhi Pro Fac Arm Lab Res DSF Res Traps Triggered 4 | . . 1 . 1 . . . . . 2 . . . . Indirectly . | . . . . . . . . . . . . . . . Trap Hack Attempts . | . . . . . . . . . . . . . . . Triggered . | . . . . . . . . . . . . . . . Disarmed . | . . . . . . . . . . . . . . . Reprogrammed . | . . . . . . . . . . . . . . . Reused 1 | . . 1 . . . . . . . . . . . . Traps Extracted . | . . . . . . . . . . . . . . . Installed 1 | . . 1 . . . . . . . . . . . . Triggered 1 | . . 1 . . . . . . . . . . . . Most Traps Carried 1 | . . 1 . . . . . . . . . . . . Machines | -11 -10 -10 -7 -5 -5 -5 -5 -4 -4 -4 -4 -3 -3 -2 ---------- Run | Yrd Mat Sub Rec Fac Upp Upp Zhi Pro Fac Arm Lab Res DSF Res Machines Disabled 11 | . 1 3 . 2 . . . 1 3 1 . . . . Max in Single Turn 1 | . 1 1 . 1 . . . 1 1 1 . . . . Garrison Access 1 | . . . . . . . . . 1 . . . . . Machines Repaired . | . . . . . . . . . . . . . . . Machines Dismantled . | . . . . . . . . . . . . . . . Machines Sabotaged . | . . . . . . . . . . . . . . . Overloaded Fab Kills . | . . . . . . . . . . . . . . . Hacking | -11 -10 -10 -7 -5 -5 -5 -5 -4 -4 -4 -4 -3 -3 -2 --------- Run | Yrd Mat Sub Rec Fac Upp Upp Zhi Pro Fac Arm Lab Res DSF Res Machines Accessed 38 | . 7 4 9 7 . . 4 . 5 1 . 1 . . Terminals 18 | . 5 . 6 3 . . . . 2 1 . 1 . . Fabricators 3 | . . . . 2 . . . . 1 . . . . . Repair Stations 1 | . . . . . . . . . 1 . . . . . Recycling Units 7 | . 2 . 3 2 . . . . . . . . . . Scanalyzers . | . . . . . . . . . . . . . . . Garrison Access 1 | . . . . . . . . . 1 . . . . . Total Hacks 105 | . 16 7 26 22 . . 17 . 14 2 . 1 . . Successful 59 | . 8 7 11 8 . . 17 . 6 1 . 1 . . Failed 45 | . 8 . 14 14 . . . . 8 1 . . . . Catastrophic 8 | . 1 . 1 5 . . . . 1 . . . . . Database Lockouts 1 | . . . 1 . . . . . . . . . . . Manual 38 | . 10 . 14 7 . . . . 7 . . . . . Terminals 55 | . 13 . 19 11 . . . . 9 2 . 1 . . Fabricators 8 | . . . . 6 . . . . 2 . . . . . Repair Stations 2 | . . . . . . . . . 2 . . . . . Recycling Units 15 | . 3 . 7 5 . . . . . . . . . . Scanalyzers . | . . . . . . . . . . . . . . . Garrison Access 1 | . . . . . . . . . 1 . . . . . Terminal Hacks 40 | . 5 7 6 1 . . 17 . 2 1 . 1 . . Record 10 | . . 4 . . . . 5 . . 1 . . . . Part Schematic 6 | . . . 2 . . . 4 . . . . . . . Robot Schematic 1 | . . . 1 . . . . . . . . . . . Robot Analysis 7 | . 2 . 1 . . . 4 . . . . . . . Prototype ID Bank 8 | . 1 . 2 1 . . 4 . . . . . . . Open Door 1 | . . 1 . . . . . . . . . . . . Open DSF 1 | . . . . . . . . . . . . 1 . . Branch Access Points 1 | . . . . . . . . . 1 . . . . . Fabricator Index 1 | . . . . . . . . . 1 . . . . . Hauler Manifests 1 | . 1 . . . . . . . . . . . . . Registered Components 1 | . 1 . . . . . . . . . . . . . Proto ID Catalog 1 | . . 1 . . . . . . . . . . . . Release Object 1 | . . 1 . . . . . . . . . . . . Fabricator Hacks 3 | . . . . 3 . . . . . . . . . . Load Schematic 2 | . . . . 2 . . . . . . . . . . Build 1 | . . . . 1 . . . . . . . . . . Repair Station Hacks 1 | . . . . . . . . . 1 . . . . . Refit 1 | . . . . . . . . . 1 . . . . . Recycling Unit Hacks 4 | . 2 . 1 1 . . . . . . . . . . Retrieve Components 4 | . 2 . 1 1 . . . . . . . . . . Scanalyzer . | . . . . . . . . . . . . . . . Garrison Access Hacks 1 | . . . . . . . . . 1 . . . . . Seal Access 1 | . . . . . . . . . 1 . . . . . Unauthorized Hacks 10 | . 1 . 4 3 . . . . 2 . . . . . Terminals 8 | . 1 . 3 2 . . . . 2 . . . . . Assimilate 2 | . 1 . . 1 . . . . . . . . . . Botnet 6 | . . . 3 1 . . . . 2 . . . . . Fabricators 1 | . . . . 1 . . . . . . . . . . Recompile 1 | . . . . 1 . . . . . . . . . . Repair Stations . | . . . . . . . . . . . . . . . Recycling Units 1 | . . . 1 . . . . . . . . . . . Mask 1 | . . . 1 . . . . . . . . . . . Scanalyzers . | . . . . . . . . . . . . . . . Garrison Access . | . . . . . . . . . . . . . . . Data Cores Recovered 1 | . 1 . . . . . . . . . . . . . Used 1 | . 1 . . . . . . . . . . . . . Hacking Detections 24 | . 7 . 7 6 . . . . 4 . . . . . Full Trace Events 2 | . . . 1 1 . . . . . . . . . . Feedback Events . | . . . . . . . . . . . . . . . Feedback Blocked . | . . . . . . . . . . . . . . . Robot Schematics Acquired 1 | . . . 1 . . . . . . . . . . . Robots Built . | . . . . . . . . . . . . . . . Authchips . | . . . . . . . . . . . . . . . Time . | . . . . . . . . . . . . . . . Total Robot Build Rating . | . . . . . . . . . . . . . . . Part Schematics Acquired 26 | . . . 2 5 5 2 7 2 3 . . . . . Parts Built 1 | . . . . 1 . . . . . . . . . . Authchips 1 | . . . . 1 . . . . . . . . . . Time 28 | . . . . 28 . . . . . . . . . . Total Part Build Rating 4 | . . . . 4 . . . . . . . . . . Parts Repaired . | . . . . . . . . . . . . . . . Time . | . . . . . . . . . . . . . . . Parts Recycled . | . . . . . . . . . . . . . . . Recycled Matter . | . . . . . . . . . . . . . . . Retrieved Matter . | . . . . . . . . . . . . . . . Retrieved Components 8 | . 6 . . 2 . . . . . . . . . . Parts Scanalyzed . | . . . . . . . . . . . . . . . Part Schematics Acquired . | . . . . . . . . . . . . . . . Parts Damaged . | . . . . . . . . . . . . . . . Bothacking | -11 -10 -10 -7 -5 -5 -5 -5 -4 -4 -4 -4 -3 -3 -2 ------------ Run | Yrd Mat Sub Rec Fac Upp Upp Zhi Pro Fac Arm Lab Res DSF Res Used RIF Installer . | . . . . . . . . . . . . . . . Robots Hacked 1 | . . . . 1 . . . . . . . . . . Non-combat 1 | . . . . 1 . . . . . . . . . . Combat . | . . . . . . . . . . . . . . . Robot Hacks Applied 2 | . . . . 2 . . . . . . . . . . parse_system 1 | . . . . 1 . . . . . . . . . . find_chute 1 | . . . . 1 . . . . . . . . . . Relay Couplers Released . | . . . . . . . . . . . . . . . Fabnet Peak Effective % . | . . . . . . . . . . . . . . . Robots Rewired 7 | . . . 7 . . . . . . . . . . . Allies Hacked . | . . . . . . . . . . . . . . . Hacks Repelled . | . . . . . . . . . . . . . . . Allies | -11 -10 -10 -7 -5 -5 -5 -5 -4 -4 -4 -4 -3 -3 -2 -------- Run | Yrd Mat Sub Rec Fac Upp Upp Zhi Pro Fac Arm Lab Res DSF Res Total Allies 9 | . 1 . 7 1 . . . . . . . . . . Largest Group 8 | . 1 1 8 1 . . . . . . . . . . Highest-Rated Group 121 | . 10 10 121 34 . . . . . . . . . . Highest-Rated Ally 34 | . 10 10 34 34 . . . . . . . . . . Total Orders 6 | . . 2 4 . . . . . . . . . . . STAY 4 | . . 1 3 . . . . . . . . . . . FOLLOW 2 | . . 1 1 . . . . . . . . . . . Ally Attacks 18 | . . . 13 5 . . . . . . . . . . Total Damage 450 | . . . 350 100 . . . . . . . . . . Kills 2 | . . . 2 . . . . . . . . . . . Allies Corrupted . | . . . . . . . . . . . . . . . Allies Melted . | . . . . . . . . . . . . . . . Intel | -11 -10 -10 -7 -5 -5 -5 -5 -4 -4 -4 -4 -3 -3 -2 ------- Run | Yrd Mat Sub Rec Fac Upp Upp Zhi Pro Fac Arm Lab Res DSF Res Active Infowar (turns) 4065 | 106 1124 352 . 736 530 279 199 348 390 1 . . . . Sensors 2472 | . . . . 736 530 279 199 348 380 . . . . . IFF 519 | . . . . 234 285 . . . . . . . . . Structural 1722 | . . . . 60 514 279 199 348 322 . . . . . Seismic 1582 | 106 1124 352 . . . . . . . . . . . . ECM 14 | . . . . . . . . . 13 1 . . . . Robot Analysis Total 7 | . 2 . 1 . . . 4 . . . . . . . Derelict Logs Recovered 3 | . . 1 . . 1 1 . . . . . . . . Drone Launches . | . . . . . . . . . . . . . . . Drone Recoveries . | . . . . . . . . . . . . . . . Exploration | -11 -10 -10 -7 -5 -5 -5 -5 -4 -4 -4 -4 -3 -3 -2 ------------- Run | Yrd Mat Sub Rec Fac Upp Upp Zhi Pro Fac Arm Lab Res DSF Res Turns Passed 12191 | 190 1126 6176 1714 841 530 279 199 348 481 148 4 8 31 116 Spaces Moved 8164 | 75 524 2880 1150 1014 655 247 174 302 543 211 9 18 93 269 Core 943 | 2 . . . 548 . . 1 . 163 178 . . . 51 Treads 3017 | 73 524 2420 . . . . . . . . . . . . Legs 1654 | . . 460 1150 39 . . 5 . . . . . . . Wheels 12 | . . . . . 7 . . . . 5 . . . . Hover 2178 | . . . . 427 648 247 168 302 380 6 . . . . Flight 360 | . . . . . . . . . . 22 9 18 93 218 Fastest Speed 27 | 50 160 130 130 50 60 70 70 90 50 47 47 27 27 27 Average Speed 113 | 157 160 155 130 67 63 70 82 91 77 53 47 28 27 35 Slowest Speed 350 | 160 160 160 130 250 110 70 350 140 160 200 47 47 27 50 Overloaded Moves 47 | . . . . . . . . . . . . . . 47 Propulsion Burnouts . | . . . . . . . . . . . . . . . Robots Hopped 12 | . . . . . . . . . . 5 . . 3 4 Potential Cave-ins 8 | . . . . . 4 4 . . . . . . . . Cave-ins Triggered 1 | . . . . . 1 . . . . . . . . . Teleports 1 | . . . . . . . . . . 1 . . . . Exploration Rate (%) 45 | 5 95 92 98 28 76 44 60 56 18 11 5 2 76 10 Regions Visited 14 Branch Regions 8 Pre-discovered Areas 5 | . . 2 . . . . 3 . . . . . . . Known Exits Taken 7 | . . . . 1 1 1 1 1 1 . . 1 . . Unknown Exits Taken 6 | 1 1 1 1 . . . . . . 1 1 . . . Scrap Searched 21 | . . 13 . . 4 3 . 1 . . . . . . Spaces Dug 41 | . 10 . 1 6 11 4 . 4 2 2 . . . 1 Terrain Destroyed 195 | . 51 1 2 6 89 28 . 7 4 2 . . . 5 Melee 15 | . . . . 5 5 . . 2 1 2 . . . . Projectile 51 | . 16 1 2 1 6 15 . 5 3 . . . . 2 AOE 129 | . 35 . . . 78 13 . . . . . . . 3 Terrain Rammed . | . . . . . . . . . . . . . . . Walls Destroyed . | . . . . . . . . . . . . . . . Machines Disabled . | . . . . . . . . . . . . . . . Actions | -11 -10 -10 -7 -5 -5 -5 -5 -4 -4 -4 -4 -3 -3 -2 --------- Run | Yrd Mat Sub Rec Fac Upp Upp Zhi Pro Fac Arm Lab Res DSF Res Total 10571 | 107 689 4455 1327 1151 725 327 215 345 594 232 8 23 94 279 Wait 1662 | 1 80 1373 48 40 18 54 7 12 23 1 . . 3 2 Move 8128 | 74 523 2879 1149 1013 653 246 173 301 542 202 8 17 87 261 Hop 9 | . . . . . . . . . . 3 . . 2 4 Pick Up 64 | 4 13 20 11 11 1 . 1 1 1 . . . 1 . Fast Attach 82 | 7 2 10 5 18 5 . 13 . 6 13 . . 1 2 Attach 20 | . . 4 . 7 . . . . 3 3 . . . 3 Detach 17 | . . . 2 7 . . . . 4 1 . 2 . 1 Swap 57 | . 9 11 5 6 10 7 3 4 2 . . . . . Drop 107 | . 6 45 9 15 4 . 11 1 6 6 . 4 . . Fire 257 | 17 51 85 26 7 23 17 . 23 3 . . . . 5 Melee 55 | . . 13 . 12 10 3 7 3 4 3 . . . . Ram 1 | . . . . . . . . . . . . . . 1 Kick . | . . . . . . . . . . . . . . . Crush 9 | 4 5 . . . . . . . . . . . . . Escape Stasis 16 | . . . . 15 1 . . . . . . . . . Rewire 72 | . . . 72 . . . . . . . . . . . Trap 1 | . . 1 . . . . . . . . . . . . Miscellaneous 14 | . . 14 . . . . . . . . . . . . Route ------- -11/Scrapyard -10/Materials (discovered 6 exits: [*Mat x3] / [*Min x2] / *Sub) -10/Subcaves (discovered 3 exits: [*Mat x2] / *Rec) -7/Recycling -5/Factory -5/Upper Caves -5/Upper Caves -5/Zhirov -4/Proximity Caves -4/Factory (discovered 4 exits: *Res / Upp x2 / *Arm) -4/Armory -4/Lab -3/Research -3/DSF -2/Research History --------- Turn | Location | Event 4 | -11/Scrapyard | Discovered new exit (range 16) 191 | -11/Scrapyard | Entered Materials 308 | -10/Materials | Build established: Mutant 480 | -10/Materials | Discovered new exit (range 16) 682 | -10/Materials | Discovered new exit (range 12) 831 | -10/Materials | Discovered new exit (range 9) 911 | -10/Materials | Discovered new exit (range 16) 1208 | -10/Materials | Discovered new exit (range 16) 1297 | -10/Materials | Discovered new exit (range 11) 1317 | -10/Materials | Entered Subcaves 1317 | -10/Subcaves | Accompanied by 1 ally 1322 | -10/Subcaves | Learned location of Mines (-10) 1526 | -10/Subcaves | Discovered new exit (range 14) 2080 | -10/Subcaves | Learned location of Zion (-6) 2080 | -10/Subcaves | Met a Zionite searching for "candidates" 2285 | -10/Subcaves | Discovered new exit (range 5) 2410 | -10/Subcaves | Core integrity fell below 50% 2646 | -10/Subcaves | Visited 4L-MR0's lab 2684 | -10/Subcaves | Found Cargo Legs 2780 | -10/Subcaves | Build established: Subdweller-Mutant 2832 | -10/Subcaves | Disturbed a concealed Subdweller 3297 | -10/Subcaves | Curiously followed by a Cobbler waking with a query about "LVR3C" 3999 | -10/Subcaves | Build established: Mutant 4211 | -10/Subcaves | Shifting Twisted Machinery released Riot Gun 4217 | -10/Subcaves | Shifting Twisted Machinery released Hvy. Riot Gun 4275 | -10/Subcaves | Visited Clippyterm 4279 | -10/Subcaves | Learned Factory fabricator intel 4279 | -10/Subcaves | Learned Research machine intel 4685 | -10/Subcaves | Discovered new exit (range 8) 6409 | -10/Subcaves | Attached Cargo Legs, gained temporary slots: Utility x2 6411 | -10/Subcaves | Found SUBCON Basin 7493 | -10/Subcaves | Entered Recycling 7493 | -7/Recycling | Accompanied by 1 ally 8075 | -7/Recycling | Discovered new exit (range 16) 8128 | -7/Recycling | Scanned before Scraplab entrance 8147 | -7/Recycling | Entered Scraplab 8576 | -7/Recycling | Core integrity fell below 20% 8995 | -7/Recycling | Build established: Commander-Mutant 9204 | -7/Recycling | Lost 6 allies 9207 | -7/Recycling | Entered Factory 9207 | -5/Factory | Accompanied by 1 ally 9207 | -5/Factory | Evolved 10 slots: Power x1, Propulsion x3, Utility x6 9208 | -5/Factory | Loaded intel: 4 fabricator locations 9262 | -5/Factory | Released all parts (7) 9464 | -5/Factory | Build established: Mutant 9549 | -5/Factory | Tech Extrapolator generated special schematic: Deep Structural Scanner 9752 | -5/Factory | Discovered new exit (range 7) 9762 | -5/Factory | Identified exit to Upper Caves 9927 | -5/Factory | Found Prototype Launcher 9927 | -5/Factory | Identified Mni. Smartbomb Launcher 9988 | -5/Factory | Fabricated Deep Structural Scanner (x1) 10048 | -5/Factory | Entered Upper Caves 10105 | -5/Upper Caves | Build established: Scout 10305 | -5/Upper Caves | Spotted B-75 Beast 10333 | -5/Upper Caves | Crushed by falling debris 10535 | -5/Upper Caves | Found DCF Scrap (14 items) 10573 | -5/Upper Caves | Discovered new exit (range 8) 10577 | -5/Upper Caves | Identified exit to Upper Caves 10578 | -5/Upper Caves | Entered another Upper Caves area 10844 | -5/Upper Caves | Discovered new exit (range 16) 10857 | -5/Upper Caves | Identified exit to Zhirov 10857 | -5/Upper Caves | Entered Zhirov 10857 | -5/Zhirov | Discovered new exit (range 3) 10870 | -5/Zhirov | Met Zhirov 10886 | -5/Zhirov | Learned location of Quarantine (-3) 10886 | -5/Zhirov | Learned location of Testing (-2) 10886 | -5/Zhirov | Learned location of Command (-1) 10890 | -5/Zhirov | Zhirov requested help retrieving the SGEMP Prototype 10902 | -5/Zhirov | Found Alien Artifact 10902 | -5/Zhirov | Identified Integrated Dissipator 10902 | -5/Zhirov | Installed Integrated Dissipator, increased core heat dissipation (+20) 10911 | -5/Zhirov | Found Alien Artifact 11055 | -5/Zhirov | Identified exit to Proximity Caves 11056 | -5/Zhirov | Entered Proximity Caves 11240 | -4/Proximity Caves | Found Alien Artifact 11395 | -4/Proximity Caves | Discovered new exit (range 10) 11404 | -4/Proximity Caves | Identified exit to Factory 11404 | -4/Proximity Caves | Entered Factory 11404 | -4/Factory | Evolved 2 slots: Propulsion x2 11405 | -4/Factory | Identified exit to Upper Caves 11405 | -4/Factory | Identified exit to Armory 11748 | -4/Factory | Released all parts (9) 11749 | -4/Factory | Discovered new exit (range 9) 11774 | -4/Factory | Lost 3 parts (1p2u) 11816 | -4/Factory | Core integrity fell below 50% 11885 | -4/Factory | Entered Armory 11894 | -4/Armory | Released all parts (5) 11921 | -4/Armory | Lost 3 parts (1p2n) 11998 | -4/Armory | Identified Transdimensional Reconstructor 11998 | -4/Armory | Warped through subspace to slip node 11998 | -4/Armory | Discovered new exit (range 1) 12018 | -4/Armory | Found Prototype Launcher 12018 | -4/Armory | Identified Tesla Bomb Launcher 12021 | -4/Armory | Found Prototype Device 12021 | -4/Armory | Identified Exp. ECM Suite 12032 | -4/Armory | Core integrity fell below 20% 12033 | -4/Armory | Entered Lab 12033 | -4/Lab | Discovered new exit (range 9) 12037 | -4/Lab | Entered Research 12037 | -3/Research | Evolved 2 slots: Power x1, Propulsion x1 12038 | -3/Research | Loaded intel: 96 machine locations 12045 | -3/Research | Identified exit to DSF 12045 | -3/Research | Entered DSF 12067 | -3/DSF | Additional patrols routed to DSF 12072 | -3/DSF | Discovered new exit (range 15) 12076 | -3/DSF | Entered Research 12076 | -2/Research | Evolved 2 slots: Power x1, Propulsion x1 12086 | -2/Research | Spotted B-90 Cyclops 12152 | -2/Research | Core integrity fell below 50% 12165 | -2/Research | Core integrity fell below 20% 12192 | -2/Research | Destroyed by S-43 Plague with Heavy Machine Gun Last Messages --------------- 12161_ R-10 Processor collects Lgt. Antimatter Reactor. 12162_ R-10 Processor collects Unknown Wheel. 12162_ U-05 Engineer lays Concrete. 12163_ Acquired Xenon Bombardment Thruster. 12163_ U-05 Engineer lays Concrete. 12163_ Xenon Bombardment Thruster destroyed. 12164_ R-10 Processor collects Hvy. Machine Gun. 12164_ U-05 Engineer lays Concrete. 12164_ Critical hit (Burn: +37). 12165_ U-05 Engineer destroyed. 12166_ R-10 Processor collects Unknown Wheel. 12168_ K-01 Serf cleans the Terminal. 12169_ R-10 Processor collects Welding Torch. 12170_ R-10 Processor collects Terrain Scanner. 12171_ R-10 Processor collects Unknown Wheel. 12171_ K-01 Serf cleans the Terminal. 12172_ Slammed into T-07 Excavator. 12173_ Acquired Prototype Flight Unit. 12173_ Identified Cld. Field Propulsion Drive. Map ----- +----------------------------------------------------+ | ?????????????????????????????????????????????????? | | ?????????????????????????????????????????????????? | | ?????????????????????????????????????????????????? | | ?????????????????????????????????????????????????? | | ?????????????????????????????????????????????????? | | ?????????????????????????????????????????????????? | | ?????????????????????????????????????????????????? | | ?????????????????????????????????????????????????? | | ?????????????????????????????????????????????????? | | ?????????????????????????????????????????????????? | | ?????????????????????????????????????????????????? | | ?????????????????????????????????????????????????? | | ?????????????????????????????????????????????????? | | ?????????????????????????????????????????????????? | | ?????????????????????????????????????????????????? | | ?????????????????????????????????????????????????? | | ?????????????????????????????????????????????????? | | ?????????????????????????????????????????????????? | | ?????????????????????????????????????????????????? | | ????????????????????????#+#??????????????????????? | | ?##########? ??????????? ??????????????????????? | | ? # ?????????# #??????????????????????? | | ? # #????????# #??????????????????????? | | "" # #????????# #??????????????????????? | | "" % # #????????# #??????????????????????? | | "" # #????????#@#??????????????????????? | | # #????????# #??????????????????????? | | # #????????# #??????????????????????? | | # #????????# ##########?????????????? | | # #????????# # #?????????????? | | # #????????# # #?????????????? | | ## ##### ########## # #??########???? | | """T""" # #??# ! #???? | | ]% # """ #??# #???? | | % s# """ #??# #???? | | == ! * !! / """ #??# #???? | | = !! # #??# #???? | | = ! """""" # #??? ?????? | | """""" #####+#########+#??????? | | """""" #??????? | | ] #??????? | | #??????? | | #??????? | | ######################+############ = #??????? | | = #???????????? ?????????# #??????? | | #???????????? ???????# #??????? | | """ #??????????? ? ??????# ##### #??????? | | """ #??????????? ?? #????# #???# #??????? | | """ #??????????"" """ ?? #????# #???? #??????? | | #??????????""S""" ????????#+#???? #??????? | +----------------------------------------------------+ Best States ------------- Heat Dissipation 69 Coolant Potential 80 Energy Generation 34 Energy Capacity 670 Matter Stores 300 Matter Capacity 300 Sight Range 16 Robot Scan Range 16 Terrain Scan Density 10 ECM Strength 1 Power Amplification 30 Base Temperature (-) 100 Armor Coverage 800 Evasion (%) 64 Melee Accuracy 8 Recoil Reduction 2 Offensive Hacking 12 Defensive Hacking 12 Authchip Count 1 Item Schematics ----------------- Adv. Heat Sink | -7/Recycling | Hacked Variable Charge Gun | -7/Recycling | Hacked Spk. Medium Treads | -5/Factory | Extrapolated Deep Structural Scanner | -5/Factory | Extrapolated Mak. System Shield | -5/Factory | Extrapolated Mak. Medium Armor Plating | -5/Factory | Extrapolated Mak. Light Armor Plating | -5/Factory | Extrapolated Spk. Treads | -5/Upper Caves | Extrapolated Mak. Ablative Armor | -5/Upper Caves | Extrapolated Mak. Coolant Network | -5/Upper Caves | Extrapolated Mak. Thermal Plating | -5/Upper Caves | Extrapolated Beamcaster | -5/Upper Caves | Extrapolated Mak. Terrain Scanner | -5/Upper Caves | Extrapolated Hvy. Beamcaster | -5/Upper Caves | Extrapolated Assault Drone Bay | -5/Zhirov | Free Exp. Heat Sink | -5/Zhirov | Free Exp. Optical Array | -5/Zhirov | Free Imp. Arc Thrower | -5/Zhirov | Free Mak. Terrain Scan Processor | -5/Zhirov | Extrapolated Spk. Heavy Treads | -5/Zhirov | Extrapolated Mak. Core Shielding | -5/Zhirov | Extrapolated Mak. Heavy Armor Plating | -4/Proximity Caves | Extrapolated Bore Cannon | -4/Proximity Caves | Extrapolated Tactical Coordination Suite | -4/Factory | Extrapolated Mak. ECM Suite | -4/Factory | Extrapolated Mak. Hacking Suite | -4/Factory | Extrapolated Robot Schematics ------------------ Y-45 Defender | -7/Recycling | Hacked Fabricated ------------ Deep Structural Scanner | x1 | -5/Factory | Authchip Repaired ---------- Nothing Alien Tech Used ----------------- Integrated Dissipator Transdimensional Reconstructor Achievements -------------- None Challenges ------------ None Game ------ Seed FieldthrustRefineryFocus Manual? 0 Play Time 01:36:31 Cumulative 376.4 hours Start 2025.10.21 @ 19:28:10 End 2025.10.21 @ 21:49:15 Sessions 3 Manual Loads 0 Difficulty Rogue Special Mode None Game No. 252 Rogue 252 Adventurer 0 Explorer 0 Win Type - Total 5 Types 3/0/1/0/0/0/0/1/0/0 Lore% 78 Gallery% 79 Achievement% 71 Wizard Run 0 Options --------- Layout 1 ASCII 0 Keyboard 0 Movement Numpad Keybinds 0 Fullscreen 1 Font 24/Smallcaps Map View 50x40 Zoom Use 0% Tactical HUD 1 Map Filters NONE Filters NONE Steam 1 RUN: 725214a3-9172-4083-91db-72638326304d